[Event "*** Titled Tuesday Blitz"]
[Site "Chess.com"]
[Date "2021.03.02"]
[Round "3"]
[White "Heretoflag"]
[Black "1random"]
[Result "0-1"]
[WhiteElo "2292"]
[BlackElo "2658"]
[TimeControl "180+1"]
[EndTime "10:25:26 PST"]
[Termination "1random won on time"]

1. d4 {[%clk 0:03:00.9]} 1... d5 {[%clk 0:02:59.6]} 2. c4 {[%clk 0:02:47.2]}
2... c5 {[%clk 0:02:59.5]} 3. cxd5 {[%clk 0:02:42.5]} 3... Nf6 {[%clk
0:02:59.7]} 4. dxc5 {[%clk 0:02:38.3]} 4... e6 {[%clk 0:03:00.1]} 5. Nc3 {[%clk
0:01:46.3]} 5... exd5 {[%clk 0:02:59.8]} 6. Nf3 {[%clk 0:01:40.1]} 6... Bxc5
{[%clk 0:03:00.1]} 7. Bg5 {[%clk 0:01:00.9]} 7... d4 {[%clk 0:03:00.7]} 8. Ne4
{[%clk 0:00:41.6]} 8... Nxe4 {[%clk 0:03:00.2]} 9. Bxd8 {[%clk 0:00:10.9]} 9...
Bb4+ {[%clk 0:03:00.7]} 10. Qd2 {[%clk 0:00:07.2]} 10... Nxd2 {[%clk 0:03:00.4]}
11. Nxd2 {[%clk 0:00:08.1]} 11... Kxd8 {[%clk 0:03:00.3]} 12. a3 {[%clk
0:00:06.8]} 12... Bxd2+ {[%clk 0:03:00.8]} 13. Kxd2 {[%clk 0:00:07.7]} 13... Nc6
{[%clk 0:03:01.4]} 14. g3 {[%clk 0:00:08.1]} 14... Bf5 {[%clk 0:03:01.2]} 15.
Bg2 {[%clk 0:00:09]} 15... Ke7 {[%clk 0:03:01.9]} 16. Rac1 {[%clk 0:00:09]}
16... Rac8 {[%clk 0:03:02.5]} 17. Rc5 {[%clk 0:00:08]} 17... Bd7 {[%clk
0:03:01.2]} 18. Rhc1 {[%clk 0:00:07.8]} 18... Rc7 {[%clk 0:02:57.3]} 19. b4
{[%clk 0:00:06.9]} 19... a6 {[%clk 0:02:56.6]} 20. a4 {[%clk 0:00:06.5]} 20...
Rcc8 {[%clk 0:02:55.5]} 21. b5 {[%clk 0:00:05]} 21... axb5 {[%clk 0:02:56.4]}
22. axb5 {[%clk 0:00:05.9]} 22... Na5 {[%clk 0:02:57.1]} 23. Re5+ {[%clk
0:00:03.5]} 23... Kf6 {[%clk 0:02:56.7]} 24. Rcc5 {[%clk 0:00:03.1]} 24... Nb3+
{[%clk 0:02:56.3]} 0-1

[Event "*** Titled Tuesday Blitz"]
[Site "Chess.com"]
[Date "2021.03.02"]
[Round "3"]
[White "ajdemipopushi"]
[Black "PetrolulSah"]
[Result "1-0"]
[WhiteElo "2374"]
[BlackElo "2183"]
[TimeControl "180+1"]
[EndTime "10:25:38 PST"]
[Termination "ajdemipopushi won by resignation"]

1. Nf3 {[%clk 0:03:00.9]} 1... Nf6 {[%clk 0:02:59.5]} 2. g3 {[%clk 0:03:01]}
2... g6 {[%clk 0:02:59.4]} 3. c4 {[%clk 0:03:01.1]} 3... Bg7 {[%clk 0:03:00.3]}
4. Bg2 {[%clk 0:03:01.6]} 4... O-O {[%clk 0:03:01.2]} 5. O-O {[%clk 0:03:01.9]}
5... c5 {[%clk 0:03:01]} 6. Nc3 {[%clk 0:03:01.7]} 6... Nc6 {[%clk 0:03:01.1]}
7. d4 {[%clk 0:03:01.8]} 7... d6 {[%clk 0:02:57.3]} 8. dxc5 {[%clk 0:03:01.2]}
8... dxc5 {[%clk 0:02:56.9]} 9. Bf4 {[%clk 0:03:02]} 9... Bf5 {[%clk 0:02:50.8]}
10. Ne5 {[%clk 0:02:59.6]} 10... Qxd1 {[%clk 0:02:32.7]} 11. Rfxd1 {[%clk
0:02:50.5]} 11... Nd4 {[%clk 0:02:30]} 12. e3 {[%clk 0:02:35.7]} 12... Nc2
{[%clk 0:02:13]} 13. Rac1 {[%clk 0:02:34.7]} 13... Rad8 {[%clk 0:02:03.1]} 14.
Rxd8 {[%clk 0:02:27]} 14... Rxd8 {[%clk 0:01:58.1]} 15. e4 {[%clk 0:02:26.4]}
15... Nxe4 {[%clk 0:01:40.3]} 16. Bxe4 {[%clk 0:02:18.1]} 16... Bxe4 {[%clk
0:01:39.3]} 17. Nxe4 {[%clk 0:02:17.4]} 17... Nd4 {[%clk 0:01:39.5]} 18. Kg2
{[%clk 0:01:58.2]} 18... g5 {[%clk 0:01:38.7]} 19. Nxg5 {[%clk 0:01:56.1]} 19...
f6 {[%clk 0:01:36]} 20. Ngf3 {[%clk 0:01:19.7]} 20... Nxf3 {[%clk 0:01:33.6]}
21. Nxf3 {[%clk 0:01:16.3]} 21... e5 {[%clk 0:01:29.3]} 22. Be3 {[%clk
0:01:15.7]} 22... e4 {[%clk 0:01:28]} 23. Nh4 {[%clk 0:01:14.7]} 23... f5 {[%clk
0:01:26.7]} 24. Nxf5 {[%clk 0:01:14.3]} 24... Bxb2 {[%clk 0:01:27.4]} 25. Rb1
{[%clk 0:01:14]} 1-0

[Event "*** Titled Tuesday Blitz"]
[Site "Chess.com"]
[Date "2021.03.02"]
[Round "3"]
[White "GelmanAlexander"]
[Black "andrewtnb"]
[Result "1-0"]
[WhiteElo "2548"]
[BlackElo "2304"]
[TimeControl "180+1"]
[EndTime "10:25:47 PST"]
[Termination "GelmanAlexander won by resignation"]

1. d4 {[%clk 0:03:00.9]} 1... d5 {[%clk 0:02:53.8]} 2. Nc3 {[%clk 0:03:01.1]}
2... e6 {[%clk 0:02:52.2]} 3. Bf4 {[%clk 0:03:01.3]} 3... c5 {[%clk 0:02:49.9]}
4. e3 {[%clk 0:02:58.9]} 4... Nc6 {[%clk 0:02:48.5]} 5. Nb5 {[%clk 0:02:59]}
5... Kd7 {[%clk 0:02:04.6]} 6. c4 {[%clk 0:02:48.7]} 6... a6 {[%clk 0:02:02.4]}
7. Nc3 {[%clk 0:02:48.5]} 7... cxd4 {[%clk 0:02:02.4]} 8. exd4 {[%clk
0:02:48.2]} 8... Nf6 {[%clk 0:01:57.3]} 9. Nf3 {[%clk 0:02:48.2]} 9... Bb4
{[%clk 0:01:55.7]} 10. Bd3 {[%clk 0:02:47.4]} 10... dxc4 {[%clk 0:01:54.6]} 11.
Bxc4 {[%clk 0:02:47.3]} 11... Qa5 {[%clk 0:01:50.5]} 12. O-O {[%clk 0:02:46.8]}
12... b5 {[%clk 0:01:41.9]} 13. d5 {[%clk 0:02:41.6]} 13... bxc4 {[%clk
0:01:37.1]} 14. dxc6+ {[%clk 0:02:41.6]} 14... Ke7 {[%clk 0:01:37.2]} 15. a3
{[%clk 0:02:37.7]} 15... Bxc3 {[%clk 0:01:24.1]} 16. Bd6+ {[%clk 0:02:12.5]}
16... Ke8 {[%clk 0:01:22]} 17. bxc3 {[%clk 0:02:13.4]} 17... Qd5 {[%clk
0:01:12.6]} 18. Ne5 {[%clk 0:01:58]} 18... Qxd1 {[%clk 0:01:08]} 19. Rfxd1
{[%clk 0:01:57.8]} 19... Nd5 {[%clk 0:01:06.2]} 20. Nxc4 {[%clk 0:01:53.5]}
20... Nxc3 {[%clk 0:00:52.4]} 21. Nb6 {[%clk 0:01:43.3]} 21... Nxd1 {[%clk
0:00:51.7]} 22. Rxd1 {[%clk 0:01:42.7]} 1-0

[Event "*** Titled Tuesday Blitz"]
[Site "Chess.com"]
[Date "2021.03.02"]
[Round "3"]
[White "BahadirOzen"]
[Black "NikolaGry"]
[Result "1/2-1/2"]
[WhiteElo "2793"]
[BlackElo "2609"]
[TimeControl "180+1"]
[EndTime "10:25:53 PST"]
[Termination "Game drawn by agreement"]

1. g3 {[%clk 0:03:00.9]} 1... d5 {[%clk 0:02:56]} 2. Bg2 {[%clk 0:03:00.9]} 2...
c6 {[%clk 0:02:56]} 3. Nf3 {[%clk 0:02:59.8]} 3... Nf6 {[%clk 0:02:55.8]} 4. O-O
{[%clk 0:02:58.4]} 4... Bg4 {[%clk 0:02:55.9]} 5. c4 {[%clk 0:02:58.3]} 5...
Bxf3 {[%clk 0:02:54.4]} 6. Bxf3 {[%clk 0:02:58]} 6... e6 {[%clk 0:02:54.8]} 7.
d3 {[%clk 0:02:56.3]} 7... Nbd7 {[%clk 0:02:51.8]} 8. cxd5 {[%clk 0:02:55.9]}
8... cxd5 {[%clk 0:02:48.5]} 9. Nc3 {[%clk 0:02:56]} 9... Bb4 {[%clk 0:02:41.8]}
10. Bd2 {[%clk 0:02:53]} 10... O-O {[%clk 0:02:38.4]} 11. a3 {[%clk 0:02:53.1]}
11... Bc5 {[%clk 0:02:27.3]} 12. Rc1 {[%clk 0:02:52.9]} 12... Rc8 {[%clk
0:02:22.3]} 13. b4 {[%clk 0:02:49.4]} 13... Be7 {[%clk 0:02:18.8]} 14. Qb3
{[%clk 0:02:46.5]} 14... a6 {[%clk 0:02:12.6]} 15. Bg2 {[%clk 0:02:45.7]} 15...
Ne5 {[%clk 0:02:05.2]} 16. Na4 {[%clk 0:02:27.6]} 16... Ned7 {[%clk 0:01:57.1]}
17. Rxc8 {[%clk 0:02:19]} 17... Qxc8 {[%clk 0:01:55.6]} 18. Rc1 {[%clk
0:02:19.9]} 18... Qb8 {[%clk 0:01:54.7]} 19. Qc2 {[%clk 0:02:05.3]} 19... Bd6
{[%clk 0:01:50.6]} 20. h3 {[%clk 0:02:01.7]} 20... h6 {[%clk 0:01:43.8]} 21. Be3
{[%clk 0:02:01.4]} 21... b5 {[%clk 0:01:37]} 22. Nb2 {[%clk 0:02:00.6]} 22...
Nb6 {[%clk 0:01:31.3]} 23. Qb3 {[%clk 0:01:22.8]} 23... Rc8 {[%clk 0:01:26.3]}
24. Rxc8+ {[%clk 0:01:20.3]} 24... Nxc8 {[%clk 0:01:24.9]} 25. Qc2 {[%clk
0:01:18.3]} 25... Ne7 {[%clk 0:01:20.8]} 1/2-1/2

[Event "*** Titled Tuesday Blitz"]
[Site "Chess.com"]
[Date "2021.03.02"]
[Round "3"]
[White "andrzej"]
[Black "wadsy27"]
[Result "0-1"]
[WhiteElo "2338"]
[BlackElo "2542"]
[TimeControl "180+1"]
[EndTime "10:26:00 PST"]
[Termination "wadsy27 won by resignation"]

1. e4 {[%clk 0:03:00]} 1... c5 {[%clk 0:02:58.2]} 2. Nc3 {[%clk 0:03:00.5]} 2...
e6 {[%clk 0:02:57.9]} 3. f4 {[%clk 0:02:59.8]} 3... Nc6 {[%clk 0:02:57.1]} 4.
Nf3 {[%clk 0:02:59.3]} 4... a6 {[%clk 0:02:57]} 5. d4 {[%clk 0:02:57.4]} 5...
cxd4 {[%clk 0:02:56.4]} 6. Nxd4 {[%clk 0:02:58.3]} 6... Nxd4 {[%clk 0:02:56.9]}
7. Qxd4 {[%clk 0:02:58.1]} 7... Qc7 {[%clk 0:02:57.5]} 8. Be3 {[%clk 0:02:55.4]}
8... b5 {[%clk 0:02:57.3]} 9. O-O-O {[%clk 0:02:54.4]} 9... Bb7 {[%clk
0:02:56.5]} 10. Bd3 {[%clk 0:02:47.8]} 10... Rc8 {[%clk 0:02:54.2]} 11. Rhe1
{[%clk 0:02:43.8]} 11... Ne7 {[%clk 0:02:51]} 12. Kb1 {[%clk 0:02:17.5]} 12...
Nc6 {[%clk 0:02:48.8]} 13. Qb6 {[%clk 0:02:18]} 13... Qxb6 {[%clk 0:02:48]} 14.
Bxb6 {[%clk 0:02:18.9]} 14... Bb4 {[%clk 0:02:43.8]} 15. e5 {[%clk 0:02:03]}
15... Bxc3 {[%clk 0:02:41.5]} 16. bxc3 {[%clk 0:02:03.8]} 16... Ne7 {[%clk
0:02:41.2]} 17. Kb2 {[%clk 0:01:58.4]} 17... Nd5 {[%clk 0:02:38.8]} 18. Bd4
{[%clk 0:01:56.2]} 18... Nxf4 {[%clk 0:02:35.7]} 19. Be4 {[%clk 0:01:55.3]}
19... Bxe4 {[%clk 0:02:34.5]} 20. Rxe4 {[%clk 0:01:56.2]} 20... Nd5 {[%clk
0:02:34.9]} 21. Rd3 {[%clk 0:01:46.5]} 21... O-O {[%clk 0:02:32.5]} 22. Rg4
{[%clk 0:01:44]} 22... Rc4 {[%clk 0:02:30.9]} 23. Rdg3 {[%clk 0:01:40.1]} 23...
g6 {[%clk 0:02:29.9]} 24. h4 {[%clk 0:01:39.3]} 24... Rfc8 {[%clk 0:02:27.5]}
25. h5 {[%clk 0:01:38]} 25... b4 {[%clk 0:02:27.5]} 26. cxb4 {[%clk 0:01:34.1]}
26... Rxc2+ {[%clk 0:02:16.8]} 27. Kb3 {[%clk 0:01:34.2]} 27... Rc1 {[%clk
0:02:14.1]} 28. Bc5 {[%clk 0:01:33.9]} 28... a5 {[%clk 0:02:08.5]} 29. hxg6
{[%clk 0:01:27.4]} 29... fxg6 {[%clk 0:01:59.6]} 30. a3 {[%clk 0:01:27.1]} 30...
axb4 {[%clk 0:01:57.8]} 31. axb4 {[%clk 0:01:27.1]} 31... Rb1+ {[%clk
0:01:57.1]} 32. Kc4 {[%clk 0:01:23.6]} 32... Rxb4+ {[%clk 0:01:56.5]} 33. Kd3
{[%clk 0:01:16.9]} 33... Rxc5 {[%clk 0:01:56.4]} 34. Rxb4 {[%clk 0:01:06.2]}
34... Nxb4+ {[%clk 0:01:51.2]} 35. Kd4 {[%clk 0:01:07.1]} 35... Rd5+ {[%clk
0:01:49.5]} 36. Kc4 {[%clk 0:01:07]} 36... Nc6 {[%clk 0:01:49]} 0-1

[Event "*** Titled Tuesday Blitz"]
[Site "Chess.com"]
[Date "2021.03.02"]
[Round "3"]
[White "KarateBaby"]
[Black "lucachess49"]
[Result "0-1"]
[WhiteElo "2202"]
[BlackElo "2406"]
[TimeControl "180+1"]
[EndTime "10:26:09 PST"]
[Termination "lucachess49 won by checkmate"]

1. Nf3 {[%clk 0:03:00.9]} 1... Nf6 {[%clk 0:02:56.2]} 2. c4 {[%clk 0:03:00.3]}
2... e6 {[%clk 0:02:55.9]} 3. Nc3 {[%clk 0:02:56.2]} 3... d5 {[%clk 0:02:55.6]}
4. e3 {[%clk 0:02:56.1]} 4... c5 {[%clk 0:02:52.6]} 5. cxd5 {[%clk 0:02:43]}
5... exd5 {[%clk 0:02:50.9]} 6. d4 {[%clk 0:02:43.2]} 6... Nc6 {[%clk
0:02:50.8]} 7. Bb5 {[%clk 0:02:38]} 7... Bg4 {[%clk 0:02:49]} 8. O-O {[%clk
0:02:34.9]} 8... a6 {[%clk 0:02:04]} 9. Bxc6+ {[%clk 0:02:29.1]} 9... bxc6
{[%clk 0:02:04.9]} 10. dxc5 {[%clk 0:02:13.5]} 10... Bxc5 {[%clk 0:02:03.4]} 11.
h3 {[%clk 0:02:14]} 11... Bh5 {[%clk 0:02:02.4]} 12. b3 {[%clk 0:02:07.6]} 12...
O-O {[%clk 0:02:01.8]} 13. Bb2 {[%clk 0:02:04.2]} 13... Rc8 {[%clk 0:01:43.8]}
14. Rc1 {[%clk 0:02:01.6]} 14... Ba7 {[%clk 0:01:43.9]} 15. Ne2 {[%clk
0:01:57.4]} 15... Bb8 {[%clk 0:01:42.8]} 16. Nfd4 {[%clk 0:01:41.1]} 16... Qd6
{[%clk 0:01:38.5]} 17. g3 {[%clk 0:01:31.9]} 17... Qd7 {[%clk 0:01:32.8]} 18.
Kh2 {[%clk 0:01:22]} 18... c5 {[%clk 0:01:30.2]} 19. Nc2 {[%clk 0:01:15.6]}
19... Rc6 {[%clk 0:01:10.6]} 20. Qd2 {[%clk 0:01:08.2]} 20... Ne4 {[%clk
0:01:04.6]} 21. Qd3 {[%clk 0:01:05.3]} 21... Bf3 {[%clk 0:01:03.8]} 22. Nf4
{[%clk 0:01:02]} 22... Bxf4 {[%clk 0:01:03]} 23. exf4 {[%clk 0:01:02.9]} 23...
Qxh3+ {[%clk 0:01:02]} 24. Kxh3 {[%clk 0:01:01.6]} 24... Rh6# {[%clk 0:01:02.4]}
0-1

[Event "*** Titled Tuesday Blitz"]
[Site "Chess.com"]
[Date "2021.03.02"]
[Round "3"]
[White "NiranjanNavalgund"]
[Black "Margency"]
[Result "0-1"]
[WhiteElo "2429"]
[BlackElo "2687"]
[TimeControl "180+1"]
[EndTime "10:26:13 PST"]
[Termination "Margency won by resignation"]

1. d4 {[%clk 0:03:00.9]} 1... Nf6 {[%clk 0:02:59.2]} 2. c4 {[%clk 0:03:00.1]}
2... g6 {[%clk 0:02:59.7]} 3. Nc3 {[%clk 0:02:59.7]} 3... d5 {[%clk 0:03:00]} 4.
e3 {[%clk 0:02:55.2]} 4... Bg7 {[%clk 0:02:59.9]} 5. Nf3 {[%clk 0:02:55.4]} 5...
O-O {[%clk 0:02:59.7]} 6. Bd2 {[%clk 0:02:56.1]} 6... c5 {[%clk 0:03:00]} 7.
dxc5 {[%clk 0:02:55.8]} 7... Na6 {[%clk 0:02:54.3]} 8. cxd5 {[%clk 0:02:55.1]}
8... Nxc5 {[%clk 0:02:54.5]} 9. Bc4 {[%clk 0:02:54.1]} 9... a6 {[%clk
0:02:53.4]} 10. a4 {[%clk 0:02:48.9]} 10... b6 {[%clk 0:02:49.9]} 11. O-O {[%clk
0:02:44.7]} 11... Bb7 {[%clk 0:02:50.1]} 12. Be1 {[%clk 0:02:30.2]} 12... Rc8
{[%clk 0:02:50]} 13. Rc1 {[%clk 0:02:28.7]} 13... Qd7 {[%clk 0:02:18.5]} 14. b4
{[%clk 0:02:07.3]} 14... Nce4 {[%clk 0:02:04.2]} 15. Nxe4 {[%clk 0:02:07.3]}
15... Nxe4 {[%clk 0:02:04.4]} 16. Qb3 {[%clk 0:02:07.8]} 16... b5 {[%clk
0:02:00.4]} 17. axb5 {[%clk 0:02:05.7]} 17... axb5 {[%clk 0:02:01.3]} 18. Qb1
{[%clk 0:01:58.4]} 18... bxc4 {[%clk 0:01:40.1]} 19. Qxe4 {[%clk 0:01:57.2]}
19... Bxd5 {[%clk 0:01:38.6]} 20. Qf4 {[%clk 0:01:55.8]} 20... c3 {[%clk
0:01:31.1]} 21. e4 {[%clk 0:01:45.4]} 21... Bc4 {[%clk 0:01:25.2]} 22. Ne5
{[%clk 0:01:37.3]} 22... Bxe5 {[%clk 0:01:23.7]} 23. Qxe5 {[%clk 0:01:38.2]}
23... Bxf1 {[%clk 0:01:22.1]} 24. Kxf1 {[%clk 0:01:23.8]} 24... c2 {[%clk
0:01:16.1]} 25. Kg1 {[%clk 0:01:14.4]} 25... Rfd8 {[%clk 0:01:13.2]} 26. h4
{[%clk 0:01:12.7]} 26... Qd1 {[%clk 0:01:09.5]} 27. Qf4 {[%clk 0:01:11.8]} 27...
Qxc1 {[%clk 0:01:05.3]} 28. Qxc1 {[%clk 0:01:11.7]} 28... Rd1 {[%clk 0:01:05.9]}
0-1

[Event "*** Titled Tuesday Blitz"]
[Site "Chess.com"]
[Date "2021.03.02"]
[Round "3"]
[White "MendozaDavid2000"]
[Black "catzapto"]
[Result "1-0"]
[WhiteElo "2343"]
[BlackElo "2053"]
[TimeControl "180+1"]
[EndTime "10:26:24 PST"]
[Termination "MendozaDavid2000 won by resignation"]

1. d4 {[%clk 0:03:00.9]} 1... Nf6 {[%clk 0:02:59.6]} 2. c4 {[%clk 0:03:00.4]}
2... e6 {[%clk 0:02:59.4]} 3. Nc3 {[%clk 0:03:00.7]} 3... Bb4 {[%clk 0:02:59.9]}
4. Qc2 {[%clk 0:03:00.5]} 4... c6 {[%clk 0:03:00]} 5. a3 {[%clk 0:02:56.9]} 5...
Ba5 {[%clk 0:02:57]} 6. Bg5 {[%clk 0:02:50.3]} 6... h6 {[%clk 0:02:54.4]} 7. Bh4
{[%clk 0:02:50]} 7... g5 {[%clk 0:02:53.8]} 8. Bg3 {[%clk 0:02:50.4]} 8... d5
{[%clk 0:02:53.6]} 9. e3 {[%clk 0:02:47.1]} 9... Ne4 {[%clk 0:02:52.8]} 10. Bd3
{[%clk 0:02:43.1]} 10... Nxg3 {[%clk 0:02:50.5]} 11. hxg3 {[%clk 0:02:42.6]}
11... dxc4 {[%clk 0:02:45.4]} 12. Bxc4 {[%clk 0:02:41.8]} 12... b5 {[%clk
0:02:44.7]} 13. Bd3 {[%clk 0:02:41.2]} 13... Bb7 {[%clk 0:02:40.3]} 14. Nf3
{[%clk 0:02:40]} 14... a6 {[%clk 0:02:37.8]} 15. b4 {[%clk 0:02:35.2]} 15... Bc7
{[%clk 0:02:35.2]} 16. Ne4 {[%clk 0:02:35.3]} 16... Nd7 {[%clk 0:02:30.3]} 17.
Nexg5 {[%clk 0:02:29.4]} 17... c5 {[%clk 0:02:10.2]} 18. bxc5 {[%clk 0:02:26.4]}
18... Ba5+ {[%clk 0:01:54.9]} 19. Ke2 {[%clk 0:02:22.6]} 19... Qf6 {[%clk
0:01:47.3]} 20. Ne4 {[%clk 0:02:21]} 20... Bxe4 {[%clk 0:01:46.4]} 21. Bxe4
{[%clk 0:02:20.8]} 21... Rc8 {[%clk 0:01:43.6]} 22. Qd3 {[%clk 0:02:07.4]} 22...
h5 {[%clk 0:01:39]} 23. a4 {[%clk 0:02:06.5]} 23... Rd8 {[%clk 0:01:31.8]} 24.
axb5 {[%clk 0:02:06.2]} 24... Nxc5 {[%clk 0:01:32.1]} 25. Bc6+ {[%clk
0:02:03.4]} 25... Kf8 {[%clk 0:01:31.2]} 26. Qa3 {[%clk 0:02:03.4]} 26... Qf5
{[%clk 0:01:10.2]} 27. Qxc5+ {[%clk 0:01:59.6]} 27... Qxc5 {[%clk 0:01:10.4]}
28. dxc5 {[%clk 0:02:00.1]} 28... Bb4 {[%clk 0:01:09]} 29. Rhc1 {[%clk 0:01:56]}
29... a5 {[%clk 0:01:08.1]} 30. b6 {[%clk 0:01:55.4]} 30... h4 {[%clk
0:01:07.5]} 31. gxh4 {[%clk 0:01:54.7]} 31... Rg8 {[%clk 0:01:07]} 32. g3 {[%clk
0:01:52.5]} 32... e5 {[%clk 0:01:07.4]} 33. Nxe5 {[%clk 0:01:50.6]} 33... Rd2+
{[%clk 0:01:07.2]} 34. Kf3 {[%clk 0:01:51]} 34... Rg6 {[%clk 0:01:07.3]} 35.
Nxg6+ {[%clk 0:01:50.8]} 35... fxg6 {[%clk 0:01:07.4]} 36. b7 {[%clk 0:01:51.3]}
36... Kg7 {[%clk 0:01:06.9]} 37. b8=Q {[%clk 0:01:50.8]} 37... Bxc5 {[%clk
0:01:07.8]} 38. Rxc5 {[%clk 0:01:49.6]} 38... a4 {[%clk 0:01:07.8]} 39. Qe5+
{[%clk 0:01:48.4]} 39... Kh6 {[%clk 0:01:05.4]} 40. h5 {[%clk 0:01:46.6]} 40...
a3 {[%clk 0:01:02.5]} 41. Qg5+ {[%clk 0:01:46.4]} 41... Kh7 {[%clk 0:01:01.8]}
42. Qxg6+ {[%clk 0:01:46.3]} 42... Kh8 {[%clk 0:01:02.2]} 43. Be4 {[%clk
0:01:41.5]} 43... Rxf2+ {[%clk 0:01:00.9]} 44. Kxf2 {[%clk 0:01:41.4]} 1-0

[Event "*** Titled Tuesday Blitz"]
[Site "Chess.com"]
[Date "2021.03.02"]
[Round "3"]
[White "stepakyedael"]
[Black "JiiHart"]
[Result "1-0"]
[WhiteElo "2334"]
[BlackElo "2084"]
[TimeControl "180+1"]
[EndTime "10:26:26 PST"]
[Termination "stepakyedael won by resignation"]

1. d4 {[%clk 0:03:00.9]} 1... Nf6 {[%clk 0:02:57.6]} 2. c4 {[%clk 0:03:00.5]}
2... e6 {[%clk 0:02:57.3]} 3. Nf3 {[%clk 0:02:59.6]} 3... c5 {[%clk 0:02:57.2]}
4. d5 {[%clk 0:02:59.1]} 4... exd5 {[%clk 0:02:57.6]} 5. cxd5 {[%clk 0:02:59.1]}
5... d6 {[%clk 0:02:58.4]} 6. Nc3 {[%clk 0:02:59.2]} 6... g6 {[%clk 0:02:58.9]}
7. e4 {[%clk 0:02:59.2]} 7... Bg7 {[%clk 0:02:59.3]} 8. Bb5+ {[%clk 0:02:59.1]}
8... Bd7 {[%clk 0:02:58.7]} 9. a4 {[%clk 0:02:59.1]} 9... Bxb5 {[%clk
0:02:54.9]} 10. axb5 {[%clk 0:02:58.1]} 10... O-O {[%clk 0:02:53]} 11. O-O
{[%clk 0:02:56.9]} 11... Nbd7 {[%clk 0:02:49]} 12. h3 {[%clk 0:02:54.5]} 12...
a6 {[%clk 0:02:44.1]} 13. Bf4 {[%clk 0:02:43.7]} 13... Qe7 {[%clk 0:02:10.1]}
14. Re1 {[%clk 0:02:40.1]} 14... Rfe8 {[%clk 0:01:57.6]} 15. Qc2 {[%clk
0:02:28.7]} 15... Nh5 {[%clk 0:01:52.3]} 16. Bh2 {[%clk 0:02:23.9]} 16... Ne5
{[%clk 0:01:52]} 17. Nd2 {[%clk 0:02:19.9]} 17... Bh6 {[%clk 0:01:39.1]} 18. Ne2
{[%clk 0:02:08]} 18... axb5 {[%clk 0:01:29.2]} 19. Rxa8 {[%clk 0:02:05.3]} 19...
Rxa8 {[%clk 0:01:28.5]} 20. f4 {[%clk 0:02:04]} 20... Nc4 {[%clk 0:01:13.3]} 21.
Nxc4 {[%clk 0:02:00.8]} 21... bxc4 {[%clk 0:01:14.2]} 22. Qxc4 {[%clk
0:01:59.6]} 22... Qd7 {[%clk 0:01:02.3]} 23. g4 {[%clk 0:01:54.2]} 23... Ra4
{[%clk 0:00:47.9]} 24. Qc2 {[%clk 0:01:44.9]} 24... Rb4 {[%clk 0:00:36]} 25.
gxh5 {[%clk 0:01:30.5]} 25... Rxb2 {[%clk 0:00:35]} 26. Qxb2 {[%clk 0:01:26.3]}
1-0

[Event "*** Titled Tuesday Blitz"]
[Site "Chess.com"]
[Date "2021.03.02"]
[Round "3"]
[White "zmeeed67"]
[Black "Buryshin_Vasyl"]
[Result "1-0"]
[WhiteElo "2434"]
[BlackElo "2216"]
[TimeControl "180+1"]
[EndTime "10:26:33 PST"]
[Termination "zmeeed67 won by resignation"]

1. d4 {[%clk 0:03:00.9]} 1... f5 {[%clk 0:02:59.6]} 2. e4 {[%clk 0:02:57]} 2...
fxe4 {[%clk 0:02:59.1]} 3. Nc3 {[%clk 0:02:57.9]} 3... Nf6 {[%clk 0:02:58.1]} 4.
Bg5 {[%clk 0:02:58]} 4... e6 {[%clk 0:02:55.1]} 5. Nxe4 {[%clk 0:02:57.6]} 5...
Be7 {[%clk 0:02:54.9]} 6. Bxf6 {[%clk 0:02:57.8]} 6... Bxf6 {[%clk 0:02:54.8]}
7. Qh5+ {[%clk 0:02:58.7]} 7... g6 {[%clk 0:02:42.4]} 8. Qh6 {[%clk 0:02:59]}
8... Nc6 {[%clk 0:02:22.3]} 9. Nf3 {[%clk 0:02:57.7]} 9... b6 {[%clk 0:01:50.2]}
10. O-O-O {[%clk 0:02:28.1]} 10... Bb7 {[%clk 0:01:46.2]} 11. Bd3 {[%clk
0:02:00.6]} 11... Qe7 {[%clk 0:01:41.8]} 12. d5 {[%clk 0:01:57.8]} 12... exd5
{[%clk 0:01:40.4]} 13. Nxf6+ {[%clk 0:01:57.9]} 13... Qxf6 {[%clk 0:01:09.2]}
14. Rhe1+ {[%clk 0:01:58.8]} 14... Kd8 {[%clk 0:01:08.8]} 15. Ng5 {[%clk
0:01:27.8]} 15... d6 {[%clk 0:00:29.9]} 16. Nxh7 {[%clk 0:01:06.6]} 16... Kd7
{[%clk 0:00:21.3]} 17. Nxf6+ {[%clk 0:01:06.1]} 1-0

[Event "*** Titled Tuesday Blitz"]
[Site "Chess.com"]
[Date "2021.03.02"]
[Round "3"]
[White "SanchezKelvin"]
[Black "chessdjw"]
[Result "0-1"]
[WhiteElo "2444"]
[BlackElo "2745"]
[TimeControl "180+1"]
[EndTime "10:26:35 PST"]
[Termination "chessdjw won by resignation"]

1. d4 {[%clk 0:03:00.9]} 1... Nf6 {[%clk 0:02:59.9]} 2. c4 {[%clk 0:02:55.2]}
2... e6 {[%clk 0:03:00.2]} 3. Nf3 {[%clk 0:02:55.7]} 3... d5 {[%clk 0:03:00.2]}
4. Nc3 {[%clk 0:02:53.9]} 4... Bb4 {[%clk 0:03:00.4]} 5. Bg5 {[%clk 0:02:53]}
5... h6 {[%clk 0:03:00.1]} 6. Bxf6 {[%clk 0:02:52.6]} 6... Qxf6 {[%clk 0:03:01]}
7. e3 {[%clk 0:02:52.6]} 7... O-O {[%clk 0:03:00.7]} 8. Rc1 {[%clk 0:02:50.6]}
8... dxc4 {[%clk 0:03:00]} 9. Bxc4 {[%clk 0:02:49.6]} 9... c5 {[%clk 0:03:00.5]}
10. O-O {[%clk 0:02:45.5]} 10... cxd4 {[%clk 0:02:58.9]} 11. Qxd4 {[%clk
0:02:44.7]} 11... Qxd4 {[%clk 0:02:41]} 12. Nxd4 {[%clk 0:02:45.6]} 12... Bd7
{[%clk 0:02:41.4]} 13. a3 {[%clk 0:02:44.8]} 13... Ba5 {[%clk 0:02:38.2]} 14.
Rfd1 {[%clk 0:02:40.7]} 14... Rd8 {[%clk 0:02:31.2]} 15. b4 {[%clk 0:02:36.8]}
15... Bb6 {[%clk 0:02:31]} 16. a4 {[%clk 0:02:33]} 16... a6 {[%clk 0:01:49.2]}
17. a5 {[%clk 0:02:29.7]} 17... Ba7 {[%clk 0:01:46.8]} 18. Nb3 {[%clk 0:02:08]}
18... Nc6 {[%clk 0:01:44.1]} 19. Na2 {[%clk 0:01:55.1]} 19... Ne5 {[%clk
0:01:40.3]} 20. Nd4 {[%clk 0:01:35.9]} 20... Nxc4 {[%clk 0:01:25.4]} 21. Rxc4
{[%clk 0:01:34]} 21... e5 {[%clk 0:01:15.2]} 22. Nb3 {[%clk 0:00:24.5]} 22...
Be6 {[%clk 0:01:15.1]} 0-1